{"text_format":"1","workbook":"xlsx","n_sheets":3,"sheets":["Contract","Route Information","Approval"],"not_rendered":{"charts":0,"images":0,"macros":1,"external_links":0,"defined_names":5,"comments":2,"pivot_tables":0},"unopened":[],"bounds":{"document_bytes":16777216,"sheet_cells":100000,"rows_first":2000,"rows_last":500,"rows_between":2000,"halvings":0,"cell_chars":16384,"cell_head_chars":4096},"cells_cut":0,"cells_raw":0,"read":"whole","date_system":"1900"}

{"sheet":"Contract","index":0,"n_rows":61,"n_cols":2,"rows_kept":61,"cut":false,"hidden":false,"merged":[[43,0,43,1],[27,0,27,1],[37,0,37,1],[60,0,60,1],[49,0,49,1],[55,0,55,1],[57,0,57,1],[56,0,56,1],[19,0,19,1],[20,0,20,1],[21,0,21,1],[1,0,1,1],[14,0,14,1],[15,0,15,1],[16,0,16,1],[2,0,2,1],[17,0,17,1],[18,0,18,1],[13,0,13,1],[23,0,23,1],[24,0,24,1],[25,0,25,1],[28,0,28,1],[29,0,29,1],[26,0,26,1],[0,0,0,1],[44,0,44,1],[50,0,50,1],[36,0,36,1],[38,0,38,1],[39,0,39,1],[40,0,40,1],[41,0,41,1],[42,0,42,1],[30,0,30,1],[31,0,31,1],[32,0,32,1],[33,0,33,1],[34,0,34,1],[35,0,35,1],[22,0,22,1]]}
["This worksheet contains no tables. The user enters information in cells B4 to B13, and rows 45, 47, 50, 51, 53, 56, and 58."]
["State of New Jersey - Department of Education"]
["Student Transportation Contract - Multi Route Contract"]
["Board of Education of"]
["In the County of"]
["Multi Contract or Route Number"]
["Contract Term"]
["Pro Rated From"]
["Contractor Name"]
["Terminal Location"]
["Contractor Code"]
["Bid Number"]
["Total Contract Amount",{"$f":"SUM('Route Information'!N8:'Route Information'!N406)","v":0}]
["Board of Education and Transportation Contractor"]
["The named Board of Education and the Transportation Contractor hereby agree that: "]
["1. The transportation contractor shall transport students as set forth in the bid specifications along or adjacent to the route hereinafter described, to and from places hereinafter specified every school day in accordance with the school calendar."]
["2. The local board may, with the approval of the County Superintendent, change the designated route(s), and/or increase or decrease the cost in accordance with the bid."]
["3.  If the transportation contractor fully performs the services required by the specification and this contract, the local board shall pay the contractor the sum herein described in monthly payments.  In the case of a per diem contract, payments shall be paid monthly based on the aggregate number of days in the month for which the local board requires transportation to be furnished and the same shall be furnished."]
["4. The transportation contractor shall transport students not to exceed in number the capacity of the vehicle designated by the local board as set forth in the bid specifications (and, where applicable, another local board with which the contracting local board is providing transportation jointly) and to comply with applicable New Jersey statutes, regulations and procedures and with the rules of the local board governing student transportation.  "]
["5. The transportation contractor shall ensure that the driver of each vehicle shall be a reliable person of good character who shall possess all State school bus driver qualifications and licenses and shall comply with all statutes, regulations and procedures of the State of New Jersey and rules and specifications of the local board.  If, in the judgment of the local board, any driver of a vehicle operated under contract to transport school students shall be deemed unsuitable to drive a school vehicle because of lack of driving skills, inability to control students, failure to comply with the aforesaid rules, regulations and specifications, incapacity, unbecoming conduct, or other good cause; the local board may request the transportation  contractor to replace said driver.  If the transportation contractor shall fail to comply with the aforesaid request, the local board may require the transportation contractor to show cause why such failure to comply with the request shall be deemed to constitute a breach of contract, and may set aside and annul this contract.  "]
["6. The transportation contractor shall transport only designated student(s) and personnel over route(s) as set forth on fully detailed specifications.  The commingling of students is prohibited unless authorized by the district board of education through the joint transportation agreement process.  Vehicle(s) shall arrive and/or depart the assigned school(s) no earlier or later as so indicated.  "]
["7. The transportation contractor shall furnish automobile liability insurance covering the operation of every vehicle transporting students and drivers thereof in the amount specified in the bid specifications but not less than $1,500,000 combined single limit coverage per occurrence.  The aforesaid insurance shall cover the local board as an additional insured. The insurance company is to be one admitted under the insurance laws of this State to write the line of insurance to be provided.  The transportation contractor further agrees to file the policy or certificate of such insurance with the secretary of the local board.  In lieu of the aforesaid policy or certificate of insurance, self-insuring transportation contractors shall file with the secretary of the local board the certificate prescribed in N.J.S.A. 48:4-12 and 13.  The local board must be given 30 days notice if the insurance is to be cancelled for any reason."]
["8. The transportation contractor shall defend and indemnify the local board and any given agent, officer, or employee thereof and save harmless from and against any and all claims, actions, damages, liability and expense in connection with the loss of life, personal injury and/or damage to property arising from or out of actions of the transportation contractor occasioned wholly or in part by any act or omission to act of the transportation contractor,  its agent,  its subcontractor,  or its employees in the performance of this contract.  "]
["9. The transportation contractor shall provide a suitable surety bond as prescribed in the bid specifications.  If the transportation contractor fails to perform the services agreed upon herein, the local board may utilize such bonding to purchase equivalent services from an alternate provider.  "]
["10. The failure of one party to this contract to comply with the provisions hereof shall constitute good cause for its termination by the other party to it. "]
["11. It is understood and agreed by the parties hereto that this agreement shall be without force or effect until it shall require the approval of the County Superintendent of Schools."]
["12.  No transportation contract can be subcontracted without the prior written approval of the board of education."]
["Contractor"]
["During the performance of this contract, the contractor agrees as follows:"]
["The contractor or subcontractor, where applicable, will not discriminate against any employee or applicant for employment because of age, race, creed, color, national origin, ancestry, marital status, affectional or sexual orientation, gender identity or expression, disability, nationality or sex. Except with respect to affectional or sexual orientation and gender identity or expression, the contractor will take affirmative action to ensure that such applicants are recruited and employed, and that employees are treated during employment, without regard to their age, race, creed, color, national origin, ancestry, marital status, affectional or sexual orientation, gender identity or expression, disability, nationality or sex.  Such action shall include, but not be limited to the following: employment, upgrading, demotion, or transfer; recruitment or recruitment advertising; layoff or termination; rates of pay or other forms of compensation; and selection for training, including apprenticeship.  The contractor agrees to post in conspicuous places, available to employees and applicants for employment, notices to be provided by the Public Agency Compliance Officer setting forth provisions of this nondiscrimination clause."]
["The contractor or subcontractor, where applicable will, in all solicitations or advertisements for employees placed by or on behalf of the contractor, state that all qualified applicants will receive consideration for employment without regard to age, race, creed, color, national origin, ancestry, marital status, affectional or sexual orientation, gender identity or expression, disability, nationality or sex."]
["The contractor or subcontractor, where applicable, will send to each labor union or representative or workers with which it has a collective bargaining agreement or other contract or understanding, a notice, to be provided by the agency contracting officer advising the labor union or workers' representative of the contractor's commitments under this act and shall post copies of the notice in conspicuous places available to employees and applicants for employment."]
["The contractor or subcontractor, where applicable, agrees to comply with any regulations promulgated by the Treasurer pursuant to N.J.S.A. 10:5-31 et seq., as amended and supplemented from time to time and the Americans with Disabilities Act."]
["The contractor or subcontractor agrees to make good faith efforts to employ minority and women workers consistent with the applicable county employment goals established in accordance with N.J.A.C. l7:27 5.2, or a binding determination of the applicable county employment goals determined by the Division, pursuant to N.J.A.C. 17:27-5.2."]
["The contractor or subcontractor agrees to inform in writing its appropriate recruitment agencies including, but not limited to, employment agencies, placement bureaus, colleges, universities, labor unions, that it does not discriminate on the basis of age, creed, color, national origin, ancestry, marital status, affectional or sexual orientation, gender identity or expression, disability, nationality or sex, and that it will discontinue the use of any recruitment agency which engages in direct or indirect discriminatory practices."]
["The contractor or subcontractor agrees to revise any of its testing procedures, if necessary, to assure that all personnel testing conforms with the principles of job related testing, as established by the statutes and court decisions of the State of New Jersey and as established by applicable Federal law and applicable Federal court decisions."]
["In conforming with the applicable employment goals, the contractor or subcontractor agrees to review all procedures relating to transfer, upgrading, downgrading and layoff to ensure that all such actions are taken without regard to age, creed, color, national origin, ancestry, marital status, affectional or sexual orientation, gender identity or expression, disability, nationality or sex, consistent with the statutes and court decisions of the State of New Jersey, and applicable Federal law and applicable Federal court decisions."]
["Contractor Documents"]
["The contractor shall submit to the public agency, after notification of award but prior to execution of a goods and services contract, one of the following three documents."]
["Letter of Federal Affirmative Action Plan Approval"]
["Certificate of Employee Information Report"]
["Employee Information Report Form AA302"]
["The contractor and its subcontractors shall furnish such reports or other documents to the Div. of Contract Compliance & EEO as may be requested by the office from time to time in order to carry out the purposes of these regulations, and public agencies shall furnish such information as may be requested by the Div. of Contract Compliance & EEO for conducting a compliance investigation pursuant to Subchapter 10 of the Administrative Code at N.J.A.C. 17:27."]
["Signatures"]
["In witness whereof, the parties hereto have duty signed this contract."]
[]
["Signature - School Business Administrator/\nBoard Secretary","Date"]
[]
["Signature - President of the Local Board","Date"]
["Notary"]
["Notary to the Contractor - Subscribed and sworn before me"]
[]
["Notary Public Name","Notary's Commission Expiration Date"]
[]
["Notary Public Signature","Date"]
["Company"]
[{"$f":"B9","v":0}]
["Company or Trade Name "]
[]
["Company Representative \nAuthorized Signature","Date"]
["end of worksheet"]

{"sheet":"Route Information","index":1,"n_rows":406,"n_cols":23,"rows_kept":406,"cut":false,"hidden":false,"merged":[[0,0,0,13],[1,0,1,13],[2,0,2,13],[3,11,3,13],[4,5,4,6],[3,5,3,6],[3,8,3,9],[3,1,3,3],[4,1,4,3],[4,8,4,11]]}
["This worksheet contains one table spanning columns A through N. All cells (except row 6, which is the header row) are blank for the user to enter information. Columns G, J, K, M, and N have formulas. The cells in rows 4 and 5 autofill with the information from the Contract worksheet. Rows 2 through 6 are frozen."]
["State of New Jersey - Department of Education"]
["Student Transportation Contract - Multi Route Contract"]
["Board of Education of:",{"$f":"Contract!B4","v":0},null,null,"Multi-Contract or Route #:",{"$f":"Contract!B6","v":0},null,"Bid Number:",{"$f":"Contract!B12","v":0},null,"Contract Period:",{"$f":"Contract!B7","v":0}]
["Contractor Name:   ",{"$f":"Contract!B9","v":0},null,null,"Terminal Location:",{"$f":"Contract!B10","v":0},null,"Contractor Code:",{"$f":"Contract!B11","v":0},null,null,null,"Total Multi-Contract Amount:",{"$f":"SUM(N7:N407)","v":0}]
["(A)\nRoute Number","(B)\nDestination","(C)\nSchool Type \n\n1 Public\n2 NP\n3 PSD\n4 Charter","(D)\nArrival Time","(E)\nDeparture Time","(F)\nPer Diem Cost","(G)\n# of Days","(H)\nPer Annum Cost","(I)\nPer Diem Aide Cost","(J)\nCost Represents # of Aides","(K)\n# of Days for Aide","(L)\nInc/Dec Provision","(M)\nPer Diem Contract Total","(N)\nAnnual Contract Total"]
[null,null,null,null,null,null,null,null,null,{"$f":"IF(I7>0,1,0)","v":0},{"$f":"IF(I7>0,180,0)","v":0},null,{"$f":"IF(F7=0,\" \",IF((F7*G7)+(I7*K7)=0,\"Enter Days\",IF(F7>0,F7+IF(K7>0,I7,0))))","v":" "},{"$f":"IF(AND(F7>0,H7>0),\"Cannot Calculate\",IF(F7>0,(F7*G7)+(I7*K7),H7+(I7*K7)))","v":0}]
[null,null,null,null,null,null,null,null,null,0,0,null," ",0,null,null,null,null,null,{"$f":"SUM(T9:T257)","v":{"$error":"#REF!"}},null,null,{"$f":"IF(AND(#REF!>0,#REF!>0),1,0)","v":{"$error":"#REF!"}}]
[null,null,null,null,null,null,{"$f":"IF(F9>0,180,0)","v":0},null,null,0,0,null," ",0,null,null,null,null,null,{"$f":"IF(AND(#REF!=0,N7>0),1,0)","v":{"$error":"#REF!"}},null,null,{"$f":"IF(AND(F7>0,H7>0),1,0)","v":0}]
[null,null,null,null,null,null,0,null,null,0,0,null," ",0,null,null,null,null,null,{"$f":"IF(AND(N7=0,N8>0),1,0)","v":0},null,null,0]
[null,null,null,null,null,null,0,null,null,0,0,null," ",0,null,null,null,null,null,0,null,null,0]
[null,null,null,null,null,null,0,null,null,0,0,null," ",0,null,null,null,null,null,0,null,null,0]
[null,null,null,null,null,null,0,null,null,0,0,null," ",0,null,null,null,null,null,0,null,null,0]
[null,null,null,null,null,null,0,null,null,0,0,null," ",0,null,null,null,null,null,0,null,null,0]
[null,null,null,null,null,null,0,null,null,0,0,null," ",0,null,null,null,null,null,0,null,null,0]
[null,null,null,null,null,null,0,null,null,0,0,null," ",0,null,null,null,null,null,0,null,null,0]
[null,null,null,null,null,null,0,null,null,0,0,null," ",0,null,null,null,null,null,0,null,null,0]
[null,null,null,null,null,null,0,null,null,0,0,null," ",0,null,null,null,null,null,0,null,null,0]
[null,null,null,null,null,null,0,null,null,0,0,null," ",0,null,null,null,null,null,0,null,null,0]
[null,null,null,null,null,null,0,null,null,0,0,null," ",0,null,null,null,null,null,0,null,null,0]
[null,null,null,null,null,null,0,null,null,0,0,null," ",0,null,null,null,null,null,0,null,null,0]
[null,null,null,null,null,null,0,null,null,0,0,null," ",0,null,null,null,null,null,0,null,null,0]
[null,null,null,null,null,null,0,null,null,0,0,null," ",0,null,null,null,null,null,0,null,null,0]
[null,null,null,null,null,null,0,null,null,0,0,null," ",0,null,null,null,null,null,0,null,null,0]
[null,null,null,null,null,null,0,null,null,0,0,null," ",0,null,null,null,null,null,0,null,null,0]
[null,null,null,null,null,null,0,null,null,0,0,null," ",0,null,null,null,null,null,0,null,null,0]
[null,null,null,null,null,null,0,null,null,0,0,null," ",0,null,null,null,null,null,0,null,null,0]
[null,null,null,null,null,null,0,null,null,0,0,null," ",0,null,null,null,null,null,0,null,null,0]
[null,null,null,null,null,null,0,null,null,0,0,null," ",0,null,null,null,null,null,0,null,null,0]
[null,null,null,null,null,null,0,null,null,0,0,null," ",0,null,null,null,null,null,0,null,null,0]
[null,null,null,null,null,null,0,null,null,0,0,null," ",0,null,null,null,null,null,0,null,null,0]
[null,null,null,null,null,null,0,null,null,0,0,null," ",0,null,null,null,null,null,0,null,null,0]
[null,null,null,null,null,null,0,null,null,0,0,null," ",0,null,null,null,null,null,0,null,null,0]
[null,null,null,null,null,null,0,null,null,0,0,null," ",0,null,null,null,null,null,0,null,null,0]
[null,null,null,null,null,null,0,null,null,0,0,null," ",0,null,null,null,null,null,0,null,null,0]
[null,null,null,null,null,null,0,null,null,0,0,null," ",0,null,null,null,null,null,0,null,null,0]
[null,null,null,null,null,null,0,null,null,0,0,null," ",0,null,null,null,null,null,0,null,null,0]
[null,null,null,null,null,null,0,null,null,0,0,null," ",0,null,null,null,null,null,0,null,null,0]
[null,null,null,null,null,null,0,null,null,0,0,null," ",0,null,null,null,null,null,0,null,null,0]
[null,null,null,null,null,null,0,null,null,0,0,null," ",0,null,null,null,null,null,0,null,null,0]
[null,null,null,null,null,null,0,null,null,0,0,null," ",0,null,null,null,null,null,0,null,null,0]
[null,null,null,null,null,null,0,null,null,0,0,null," ",0,null,null,null,null,null,0,null,null,0]
[null,null,null,null,null,null,0,null,null,0,0,null," ",0,null,null,null,null,null,0,null,null,0]
[null,null,null,null,null,null,0,null,null,0,0,null," ",0,null,null,null,null,null,0,null,null,0]
[null,null,null,null,null,null,0,null,null,0,0,null," ",0,null,null,null,null,null,0,null,null,0]
[null,null,null,null,null,null,0,null,null,0,0,null," ",0,null,null,null,null,null,0,null,null,0]
[null,null,null,null,null,null,0,null,null,0,0,null," ",0,null,null,null,null,null,0,null,null,0]
[null,null,null,null,null,null,0,null,null,0,0,null," ",0,null,null,null,null,null,0,null,null,0]
[null,null,null,null,null,null,0,null,null,0,0,null," ",0,null,null,null,null,null,0,null,null,0]
[null,null,null,null,null,null,0,null,null,0,0,null," ",0,null,null,null,null,null,0,null,null,0]
[null,null,null,null,null,null,0,null,null,0,0,null," ",0,null,null,null,null,null,0,null,null,0]
[null,null,null,null,null,null,0,null,null,0,0,null," ",0,null,null,null,null,null,0,null,null,0]
[null,null,null,null,null,null,0,null,null,0,0,null," ",0,null,null,null,null,null,0,null,null,0]
[null,null,null,null,null,null,0,null,null,0,0,null," ",0,null,null,null,null,null,0,null,null,0]
[null,null,null,null,null,null,0,null,null,0,0,null," ",0,null,null,null,null,null,0,null,null,0]
[null,null,null,null,null,null,0,null,null,0,0,null," ",0,null,null,null,null,null,0,null,null,0]
[null,null,null,null,null,null,0,null,null,0,0,null," ",0,null,null,null,null,null,0,null,null,0]
[null,null,null,null,null,null,0,null,null,0,0,null," ",0,null,null,null,null,null,0,null,null,0]
[null,null,null,null,null,null,0,null,null,0,0,null," ",0,null,null,null,null,null,0,null,null,0]
[null,null,null,null,null,null,0,null,null,0,0,null," ",0,null,null,null,null,null,0,null,null,0]
[null,null,null,null,null,null,0,null,null,0,0,null," ",0,null,null,null,null,null,0,null,null,0]
[null,null,null,null,null,null,0,null,null,0,0,null," ",0,null,null,null,null,null,0,null,null,0]
[null,null,null,null,null,null,0,null,null,0,0,null," ",0,null,null,null,null,null,0,null,null,0]
[null,null,null,null,null,null,0,null,null,0,0,null," ",0,null,null,null,null,null,0,null,null,0]
[null,null,null,null,null,null,0,null,null,0,0,null," ",0,null,null,null,null,null,0,null,null,0]
[null,null,null,null,null,null,0,null,null,0,0,null," ",0,null,null,null,null,null,0,null,null,0]
[null,null,null,null,null,null,0,null,null,0,0,null," ",0,null,null,null,null,null,0,null,null,0]
[null,null,null,null,null,null,0,null,null,0,0,null," ",0,null,null,null,null,null,0,null,null,0]
[null,null,null,null,null,null,0,null,null,0,0,null," ",0,null,null,null,null,null,0,null,null,0]
[null,null,null,null,null,null,0,null,null,0,0,null," ",0,null,null,null,null,null,0,null,null,0]
[null,null,null,null,null,null,{"$f":"IF(F71>0,180,0)","v":0},null,null,{"$f":"IF(I71>0,1,0)","v":0},{"$f":"IF(I71>0,180,0)","v":0},null,{"$f":"IF(F71=0,\" \",IF((F71*G71)+(I71*K71)=0,\"Enter Days\",IF(F71>0,F71+IF(K71>0,I71,0))))","v":" "},{"$f":"IF(AND(F71>0,H71>0),\"Cannot Calculate\",IF(F71>0,(F71*G71)+(I71*K71),H71+(I71*K71)))","v":0},null,null,null,null,null,0,null,null,0]
[null,null,null,null,null,null,0,null,null,0,0,null," ",0,null,null,null,null,null,0,null,null,0]
[null,null,null,null,null,null,0,null,null,0,0,null," ",0,null,null,null,null,null,{"$f":"IF(AND(N70=0,N71>0),1,0)","v":0},null,null,{"$f":"IF(AND(F71>0,H71>0),1,0)","v":0}]
[null,null,null,null,null,null,0,null,null,0,0,null," ",0,null,null,null,null,null,0,null,null,0]
[null,null,null,null,null,null,0,null,null,0,0,null," ",0,null,null,null,null,null,0,null,null,0]
[null,null,null,null,null,null,0,null,null,0,0,null," ",0,null,null,null,null,null,0,null,null,0]
[null,null,null,null,null,null,0,null,null,0,0,null," ",0,null,null,null,null,null,0,null,null,0]
[null,null,null,null,null,null,0,null,null,0,0,null," ",0,null,null,null,null,null,0,null,null,0]
[null,null,null,null,null,null,0,null,null,0,0,null," ",0,null,null,null,null,null,0,null,null,0]
[null,null,null,null,null,null,0,null,null,0,0,null," ",0,null,null,null,null,null,0,null,null,0]
[null,null,null,null,null,null,0,null,null,0,0,null," ",0,null,null,null,null,null,0,null,null,0]
[null,null,null,null,null,null,0,null,null,0,0,null," ",0,null,null,null,null,null,0,null,null,0]
[null,null,null,null,null,null,0,null,null,0,0,null," ",0,null,null,null,null,null,0,null,null,0]
[null,null,null,null,null,null,0,null,null,0,0,null," ",0,null,null,null,null,null,0,null,null,0]
[null,null,null,null,null,null,0,null,null,0,0,null," ",0,null,null,null,null,null,0,null,null,0]
[null,null,null,null,null,null,0,null,null,0,0,null," ",0,null,null,null,null,null,0,null,null,0]
[null,null,null,null,null,null,0,null,null,0,0,null," ",0,null,null,null,null,null,0,null,null,0]
[null,null,null,null,null,null,0,null,null,0,0,null," ",0,null,null,null,null,null,0,null,null,0]
[null,null,null,null,null,null,0,null,null,0,0,null," ",0,null,null,null,null,null,0,null,null,0]
[null,null,null,null,null,null,0,null,null,0,0,null," ",0,null,null,null,null,null,0,null,null,0]
[null,null,null,null,null,null,0,null,null,0,0,null," ",0,null,null,null,null,null,0,null,null,0]
[null,null,null,null,null,null,0,null,null,0,0,null," ",0,null,null,null,null,null,0,null,null,0]
[null,null,null,null,null,null,0,null,null,0,0,null," ",0,null,null,null,null,null,0,null,null,0]
[null,null,null,null,null,null,0,null,null,0,0,null," ",0,null,null,null,null,null,0,null,null,0]
[null,null,null,null,null,null,0,null,null,0,0,null," ",0,null,null,null,null,null,0,null,null,0]
[null,null,null,null,null,null,0,null,null,0,0,null," ",0,null,null,null,null,null,0,null,null,0]
[null,null,null,null,null,null,0,null,null,0,0,null," ",0,null,null,null,null,null,0,null,null,0]
[null,null,null,null,null,null,0,null,null,0,0,null," ",0,null,null,null,null,null,0,null,null,0]
[null,null,null,null,null,null,0,null,null,0,0,null," ",0,null,null,null,null,null,0,null,null,0]
[null,null,null,null,null,null,0,null,null,0,0,null," ",0,null,null,null,null,null,0,null,null,0]
[null,null,null,null,null,null,0,null,null,0,0,null," ",0,null,null,null,null,null,0,null,null,0]
[null,null,null,null,null,null,0,null,null,0,0,null," ",0,null,null,null,null,null,0,null,null,0]
[null,null,null,null,null,null,0,null,null,0,0,null," ",0,null,null,null,null,null,0,null,null,0]
[null,null,null,null,null,null,0,null,null,0,0,null," ",0,null,null,null,null,null,0,null,null,0]
[null,null,null,null,null,null,0,null,null,0,0,null," ",0,null,null,null,null,null,0,null,null,0]
[null,null,null,null,null,null,0,null,null,0,0,null," ",0,null,null,null,null,null,0,null,null,0]
[null,null,null,null,null,null,0,null,null,0,0,null," ",0,null,null,null,null,null,0,null,null,0]
[null,null,null,null,null,null,0,null,null,0,0,null," ",0,null,null,null,null,null,0,null,null,0]
[null,null,null,null,null,null,0,null,null,0,0,null," ",0,null,null,null,null,null,0,null,null,0]
[null,null,null,null,null,null,0,null,null,0,0,null," ",0,null,null,null,null,null,0,null,null,0]
[null,null,null,null,null,null,0,null,null,0,0,null," ",0,null,null,null,null,null,0,null,null,0]
[null,null,null,null,null,null,0,null,null,0,0,null," ",0,null,null,null,null,null,0,null,null,0]
[null,null,null,null,null,null,0,null,null,0,0,null," ",0,null,null,null,null,null,0,null,null,0]
[null,null,null,null,null,null,0,null,null,0,0,null," ",0,null,null,null,null,null,0,null,null,0]
[null,null,null,null,null,null,0,null,null,0,0,null," ",0,null,null,null,null,null,0,null,null,0]
[null,null,null,null,null,null,0,null,null,0,0,null," ",0,null,null,null,null,null,0,null,null,0]
[null,null,null,null,null,null,0,null,null,0,0,null," ",0,null,null,null,null,null,0,null,null,0]
[null,null,null,null,null,null,0,null,null,0,0,null," ",0,null,null,null,null,null,0,null,null,0]
[null,null,null,null,null,null,0,null,null,0,0,null," ",0,null,null,null,null,null,0,null,null,0]
[null,null,null,null,null,null,0,null,null,0,0,null," ",0,null,null,null,null,null,0,null,null,0]
[null,null,null,null,null,null,0,null,null,0,0,null," ",0,null,null,null,null,null,0,null,null,0]
[null,null,null,null,null,null,0,null,null,0,0,null," ",0,null,null,null,null,null,0,null,null,0]
[null,null,null,null,null,null,0,null,null,0,0,null," ",0,null,null,null,null,null,0,null,null,0]
[null,null,null,null,null,null,0,null,null,0,0,null," ",0,null,null,null,null,null,0,null,null,0]
[null,null,null,null,null,null,0,null,null,0,0,null," ",0,null,null,null,null,null,0,null,null,0]
[null,null,null,null,null,null,0,null,null,0,0,null," ",0,null,null,null,null,null,0,null,null,0]
[null,null,null,null,null,null,0,null,null,0,0,null," ",0,null,null,null,null,null,0,null,null,0]
[null,null,null,null,null,null,0,null,null,0,0,null," ",0,null,null,null,null,null,0,null,null,0]
[null,null,null,null,null,null,0,null,null,0,0,null," ",0,null,null,null,null,null,0,null,null,0]
[null,null,null,null,null,null,0,null,null,0,0,null," ",0,null,null,null,null,null,0,null,null,0]
[null,null,null,null,null,null,0,null,null,0,0,null," ",0,null,null,null,null,null,0,null,null,0]
[null,null,null,null,null,null,0,null,null,0,0,null," ",0,null,null,null,null,null,0,null,null,0]
[null,null,null,null,null,null,0,null,null,0,0,null," ",0,null,null,null,null,null,0,null,null,0]
[null,null,null,null,null,null,0,null,null,0,0,null," ",0,null,null,null,null,null,0,null,null,0]
[null,null,null,null,null,null,{"$f":"IF(F135>0,180,0)","v":0},null,null,{"$f":"IF(I135>0,1,0)","v":0},{"$f":"IF(I135>0,180,0)","v":0},null,{"$f":"IF(F135=0,\" \",IF((F135*G135)+(I135*K135)=0,\"Enter Days\",IF(F135>0,F135+IF(K135>0,I135,0))))","v":" "},{"$f":"IF(AND(F135>0,H135>0),\"Cannot Calculate\",IF(F135>0,(F135*G135)+(I135*K135),H135+(I135*K135)))","v":0},null,null,null,null,null,0,null,null,0]
[null,null,null,null,null,null,0,null,null,0,0,null," ",0,null,null,null,null,null,0,null,null,0]
[null,null,null,null,null,null,0,null,null,0,0,null," ",0,null,null,null,null,null,{"$f":"IF(AND(N134=0,N135>0),1,0)","v":0},null,null,{"$f":"IF(AND(F135>0,H135>0),1,0)","v":0}]
[null,null,null,null,null,null,0,null,null,0,0,null," ",0,null,null,null,null,null,0,null,null,0]
[null,null,null,null,null,null,0,null,null,0,0,null," ",0,null,null,null,null,null,0,null,null,0]
[null,null,null,null,null,null,0,null,null,0,0,null," ",0,null,null,null,null,null,0,null,null,0]
[null,null,null,null,null,null,0,null,null,0,0,null," ",0,null,null,null,null,null,0,null,null,0]
[null,null,null,null,null,null,0,null,null,0,0,null," ",0,null,null,null,null,null,0,null,null,0]
[null,null,null,null,null,null,0,null,null,0,0,null," ",0,null,null,null,null,null,0,null,null,0]
[null,null,null,null,null,null,0,null,null,0,0,null," ",0,null,null,null,null,null,0,null,null,0]
[null,null,null,null,null,null,0,null,null,0,0,null," ",0,null,null,null,null,null,0,null,null,0]
[null,null,null,null,null,null,0,null,null,0,0,null," ",0,null,null,null,null,null,0,null,null,0]
[null,null,null,null,null,null,0,null,null,0,0,null," ",0,null,null,null,null,null,0,null,null,0]
[null,null,null,null,null,null,0,null,null,0,0,null," ",0,null,null,null,null,null,0,null,null,0]
[null,null,null,null,null,null,0,null,null,0,0,null," ",0,null,null,null,null,null,0,null,null,0]
[null,null,null,null,null,null,0,null,null,0,0,null," ",0,null,null,null,null,null,0,null,null,0]
[null,null,null,null,null,null,0,null,null,0,0,null," ",0,null,null,null,null,null,0,null,null,0]
[null,null,null,null,null,null,0,null,null,0,0,null," ",0,null,null,null,null,null,0,null,null,0]
[null,null,null,null,null,null,0,null,null,0,0,null," ",0,null,null,null,null,null,0,null,null,0]
[null,null,null,null,null,null,0,null,null,0,0,null," ",0,null,null,null,null,null,0,null,null,0]
[null,null,null,null,null,null,0,null,null,0,0,null," ",0,null,null,null,null,null,0,null,null,0]
[null,null,null,null,null,null,0,null,null,0,0,null," ",0,null,null,null,null,null,0,null,null,0]
[null,null,null,null,null,null,0,null,null,0,0,null," ",0,null,null,null,null,null,0,null,null,0]
[null,null,null,null,null,null,0,null,null,0,0,null," ",0,null,null,null,null,null,0,null,null,0]
[null,null,null,null,null,null,0,null,null,0,0,null," ",0,null,null,null,null,null,0,null,null,0]
[null,null,null,null,null,null,0,null,null,0,0,null," ",0,null,null,null,null,null,0,null,null,0]
[null,null,null,null,null,null,0,null,null,0,0,null," ",0,null,null,null,null,null,0,null,null,0]
[null,null,null,null,null,null,0,null,null,0,0,null," ",0,null,null,null,null,null,0,null,null,0]
[null,null,null,null,null,null,0,null,null,0,0,null," ",0,null,null,null,null,null,0,null,null,0]
[null,null,null,null,null,null,0,null,null,0,0,null," ",0,null,null,null,null,null,0,null,null,0]
[null,null,null,null,null,null,0,null,null,0,0,null," ",0,null,null,null,null,null,0,null,null,0]
[null,null,null,null,null,null,0,null,null,0,0,null," ",0,null,null,null,null,null,0,null,null,0]
[null,null,null,null,null,null,0,null,null,0,0,null," ",0,null,null,null,null,null,0,null,null,0]
[null,null,null,null,null,null,0,null,null,0,0,null," ",0,null,null,null,null,null,0,null,null,0]
[null,null,null,null,null,null,0,null,null,0,0,null," ",0,null,null,null,null,null,0,null,null,0]
[null,null,null,null,null,null,0,null,null,0,0,null," ",0,null,null,null,null,null,0,null,null,0]
[null,null,null,null,null,null,0,null,null,0,0,null," ",0,null,null,null,null,null,0,null,null,0]
[null,null,null,null,null,null,0,null,null,0,0,null," ",0,null,null,null,null,null,0,null,null,0]
[null,null,null,null,null,null,0,null,null,0,0,null," ",0,null,null,null,null,null,0,null,null,0]
[null,null,null,null,null,null,0,null,null,0,0,null," ",0,null,null,null,null,null,0,null,null,0]
[null,null,null,null,null,null,0,null,null,0,0,null," ",0,null,null,null,null,null,0,null,null,0]
[null,null,null,null,null,null,0,null,null,0,0,null," ",0,null,null,null,null,null,0,null,null,0]
[null,null,null,null,null,null,0,null,null,0,0,null," ",0,null,null,null,null,null,0,null,null,0]
[null,null,null,null,null,null,0,null,null,0,0,null," ",0,null,null,null,null,null,0,null,null,0]
[null,null,null,null,null,null,0,null,null,0,0,null," ",0,null,null,null,null,null,0,null,null,0]
[null,null,null,null,null,null,0,null,null,0,0,null," ",0,null,null,null,null,null,0,null,null,0]
[null,null,null,null,null,null,0,null,null,0,0,null," ",0,null,null,null,null,null,0,null,null,0]
[null,null,null,null,null,null,0,null,null,0,0,null," ",0,null,null,null,null,null,0,null,null,0]
[null,null,null,null,null,null,0,null,null,0,0,null," ",0,null,null,null,null,null,0,null,null,0]
[null,null,null,null,null,null,0,null,null,0,0,null," ",0,null,null,null,null,null,0,null,null,0]
[null,null,null,null,null,null,0,null,null,0,0,null," ",0,null,null,null,null,null,0,null,null,0]
[null,null,null,null,null,null,0,null,null,0,0,null," ",0,null,null,null,null,null,0,null,null,0]
[null,null,null,null,null,null,0,null,null,0,0,null," ",0,null,null,null,null,null,0,null,null,0]
[null,null,null,null,null,null,0,null,null,0,0,null," ",0,null,null,null,null,null,0,null,null,0]
[null,null,null,null,null,null,0,null,null,0,0,null," ",0,null,null,null,null,null,0,null,null,0]
[null,null,null,null,null,null,0,null,null,0,0,null," ",0,null,null,null,null,null,0,null,null,0]
[null,null,null,null,null,null,0,null,null,0,0,null," ",0,null,null,null,null,null,0,null,null,0]
[null,null,null,null,null,null,0,null,null,0,0,null," ",0,null,null,null,null,null,0,null,null,0]
[null,null,null,null,null,null,0,null,null,0,0,null," ",0,null,null,null,null,null,0,null,null,0]
[null,null,null,null,null,null,0,null,null,0,0,null," ",0,null,null,null,null,null,0,null,null,0]
[null,null,null,null,null,null,0,null,null,0,0,null," ",0,null,null,null,null,null,0,null,null,0]
[null,null,null,null,null,null,0,null,null,0,0,null," ",0,null,null,null,null,null,0,null,null,0]
[null,null,null,null,null,null,0,null,null,0,0,null," ",0,null,null,null,null,null,0,null,null,0]
[null,null,null,null,null,null,0,null,null,0,0,null," ",0,null,null,null,null,null,0,null,null,0]
[null,null,null,null,null,null,{"$f":"IF(F199>0,180,0)","v":0},null,null,{"$f":"IF(I199>0,1,0)","v":0},{"$f":"IF(I199>0,180,0)","v":0},null,{"$f":"IF(F199=0,\" \",IF((F199*G199)+(I199*K199)=0,\"Enter Days\",IF(F199>0,F199+IF(K199>0,I199,0))))","v":" "},{"$f":"IF(AND(F199>0,H199>0),\"Cannot Calculate\",IF(F199>0,(F199*G199)+(I199*K199),H199+(I199*K199)))","v":0},null,null,null,null,null,0,null,null,0]
[null,null,null,null,null,null,0,null,null,0,0,null," ",0,null,null,null,null,null,0,null,null,0]
[null,null,null,null,null,null,0,null,null,0,0,null," ",0,null,null,null,null,null,{"$f":"IF(AND(N198=0,N199>0),1,0)","v":0},null,null,{"$f":"IF(AND(F199>0,H199>0),1,0)","v":0}]
[null,null,null,null,null,null,0,null,null,0,0,null," ",0,null,null,null,null,null,0,null,null,0]
[null,null,null,null,null,null,0,null,null,0,0,null," ",0,null,null,null,null,null,0,null,null,0]
[null,null,null,null,null,null,0,null,null,0,0,null," ",0,null,null,null,null,null,0,null,null,0]
[null,null,null,null,null,null,0,null,null,0,0,null," ",0,null,null,null,null,null,0,null,null,0]
[null,null,null,null,null,null,0,null,null,0,0,null," ",0,null,null,null,null,null,0,null,null,0]
[null,null,null,null,null,null,0,null,null,0,0,null," ",0,null,null,null,null,null,0,null,null,0]
[null,null,null,null,null,null,0,null,null,0,0,null," ",0,null,null,null,null,null,0,null,null,0]
[null,null,null,null,null,null,0,null,null,0,0,null," ",0,null,null,null,null,null,0,null,null,0]
[null,null,null,null,null,null,0,null,null,0,0,null," ",0,null,null,null,null,null,0,null,null,0]
[null,null,null,null,null,null,0,null,null,0,0,null," ",0,null,null,null,null,null,0,null,null,0]
[null,null,null,null,null,null,0,null,null,0,0,null," ",0,null,null,null,null,null,0,null,null,0]
[null,null,null,null,null,null,0,null,null,0,0,null," ",0,null,null,null,null,null,0,null,null,0]
[null,null,null,null,null,null,0,null,null,0,0,null," ",0,null,null,null,null,null,0,null,null,0]
[null,null,null,null,null,null,0,null,null,0,0,null," ",0,null,null,null,null,null,0,null,null,0]
[null,null,null,null,null,null,0,null,null,0,0,null," ",0,null,null,null,null,null,0,null,null,0]
[null,null,null,null,null,null,0,null,null,0,0,null," ",0,null,null,null,null,null,0,null,null,0]
[null,null,null,null,null,null,0,null,null,0,0,null," ",0,null,null,null,null,null,0,null,null,0]
[null,null,null,null,null,null,0,null,null,0,0,null," ",0,null,null,null,null,null,0,null,null,0]
[null,null,null,null,null,null,0,null,null,0,0,null," ",0,null,null,null,null,null,0,null,null,0]
[null,null,null,null,null,null,0,null,null,0,0,null," ",0,null,null,null,null,null,0,null,null,0]
[null,null,null,null,null,null,0,null,null,0,0,null," ",0,null,null,null,null,null,0,null,null,0]
[null,null,null,null,null,null,0,null,null,0,0,null," ",0,null,null,null,null,null,0,null,null,0]
[null,null,null,null,null,null,0,null,null,0,0,null," ",0,null,null,null,null,null,0,null,null,0]
[null,null,null,null,null,null,0,null,null,0,0,null," ",0,null,null,null,null,null,0,null,null,0]
[null,null,null,null,null,null,0,null,null,0,0,null," ",0,null,null,null,null,null,0,null,null,0]
[null,null,null,null,null,null,0,null,null,0,0,null," ",0,null,null,null,null,null,0,null,null,0]
[null,null,null,null,null,null,0,null,null,0,0,null," ",0,null,null,null,null,null,0,null,null,0]
[null,null,null,null,null,null,0,null,null,0,0,null," ",0,null,null,null,null,null,0,null,null,0]
[null,null,null,null,null,null,0,null,null,0,0,null," ",0,null,null,null,null,null,0,null,null,0]
[null,null,null,null,null,null,0,null,null,0,0,null," ",0,null,null,null,null,null,0,null,null,0]
[null,null,null,null,null,null,0,null,null,0,0,null," ",0,null,null,null,null,null,0,null,null,0]
[null,null,null,null,null,null,0,null,null,0,0,null," ",0,null,null,null,null,null,0,null,null,0]
[null,null,null,null,null,null,0,null,null,0,0,null," ",0,null,null,null,null,null,0,null,null,0]
[null,null,null,null,null,null,0,null,null,0,0,null," ",0,null,null,null,null,null,0,null,null,0]
[null,null,null,null,null,null,0,null,null,0,0,null," ",0,null,null,null,null,null,0,null,null,0]
[null,null,null,null,null,null,0,null,null,0,0,null," ",0,null,null,null,null,null,0,null,null,0]
[null,null,null,null,null,null,0,null,null,0,0,null," ",0,null,null,null,null,null,0,null,null,0]
[null,null,null,null,null,null,0,null,null,0,0,null," ",0,null,null,null,null,null,0,null,null,0]
[null,null,null,null,null,null,0,null,null,0,0,null," ",0,null,null,null,null,null,0,null,null,0]
[null,null,null,null,null,null,0,null,null,0,0,null," ",0,null,null,null,null,null,0,null,null,0]
[null,null,null,null,null,null,0,null,null,0,0,null," ",0,null,null,null,null,null,0,null,null,0]
[null,null,null,null,null,null,0,null,null,0,0,null," ",0,null,null,null,null,null,0,null,null,0]
[null,null,null,null,null,null,0,null,null,0,0,null," ",0,null,null,null,null,null,0,null,null,0]
[null,null,null,null,null,null,0,null,null,0,0,null," ",0,null,null,null,null,null,0,null,null,0]
[null,null,null,null,null,null,0,null,null,0,0,null," ",0,null,null,null,null,null,0,null,null,0]
[null,null,null,null,null,null,0,null,null,0,0,null," ",0,null,null,null,null,null,0,null,null,0]
[null,null,null,null,null,null,0,null,null,0,0,null," ",0,null,null,null,null,null,0,null,null,0]
[null,null,null,null,null,null,0,null,null,0,0,null," ",0,null,null,null,null,null,0,null,null,0]
[null,null,null,null,null,null,0,null,null,0,0,null," ",0,null,null,null,null,null,0,null,null,0]
[null,null,null,null,null,null,0,null,null,0,0,null," ",0,null,null,null,null,null,0,null,null,0]
[null,null,null,null,null,null,0,null,null,0,0,null," ",0,null,null,null,null,null,0,null,null,0]
[null,null,null,null,null,null,0,null,null,0,0,null," ",0,null,null,null,null,null,0,null,null,0]
[null,null,null,null,null,null,0,null,null,0,0,null," ",0,null,null,null,null,null,0,null,null,0]
[null,null,null,null,null,null,0,null,null,0,0,null," ",0,null,null,null,null,null,0,null,null,0]
[null,null,null,null,null,null,0,null,null,0,0,null," ",0,null,null,null,null,null,0,null,null,0]
[null,null,null,null,null,null,0,null,null,0,0,null," ",0,null,null,null,null,null,0,null,null,0]
[null,null,null,null,null,null,0,null,null,0,0,null," ",0]
[null,null,null,null,null,null,0,null,null,0,0,null," ",0]
[null,null,null,null,null,null,0,null,null,0,0,null," ",0]
[null,null,null,null,null,null,0,null,null,0,0,null," ",0]
[null,null,null,null,null,null,0,null,null,0,0,null," ",0]
[null,null,null,null,null,null,{"$f":"IF(F263>0,180,0)","v":0},null,null,{"$f":"IF(I263>0,1,0)","v":0},{"$f":"IF(I263>0,180,0)","v":0},null,{"$f":"IF(F263=0,\" \",IF((F263*G263)+(I263*K263)=0,\"Enter Days\",IF(F263>0,F263+IF(K263>0,I263,0))))","v":" "},{"$f":"IF(AND(F263>0,H263>0),\"Cannot Calculate\",IF(F263>0,(F263*G263)+(I263*K263),H263+(I263*K263)))","v":0}]
[null,null,null,null,null,null,0,null,null,0,0,null," ",0]
[null,null,null,null,null,null,0,null,null,0,0,null," ",0]
[null,null,null,null,null,null,0,null,null,0,0,null," ",0]
[null,null,null,null,null,null,0,null,null,0,0,null," ",0]
[null,null,null,null,null,null,0,null,null,0,0,null," ",0]
[null,null,null,null,null,null,0,null,null,0,0,null," ",0]
[null,null,null,null,null,null,0,null,null,0,0,null," ",0]
[null,null,null,null,null,null,0,null,null,0,0,null," ",0]
[null,null,null,null,null,null,0,null,null,0,0,null," ",0]
[null,null,null,null,null,null,0,null,null,0,0,null," ",0]
[null,null,null,null,null,null,0,null,null,0,0,null," ",0]
[null,null,null,null,null,null,0,null,null,0,0,null," ",0]
[null,null,null,null,null,null,0,null,null,0,0,null," ",0]
[null,null,null,null,null,null,0,null,null,0,0,null," ",0]
[null,null,null,null,null,null,0,null,null,0,0,null," ",0]
[null,null,null,null,null,null,0,null,null,0,0,null," ",0]
[null,null,null,null,null,null,0,null,null,0,0,null," ",0]
[null,null,null,null,null,null,0,null,null,0,0,null," ",0]
[null,null,null,null,null,null,0,null,null,0,0,null," ",0]
[null,null,null,null,null,null,0,null,null,0,0,null," ",0]
[null,null,null,null,null,null,0,null,null,0,0,null," ",0]
[null,null,null,null,null,null,0,null,null,0,0,null," ",0]
[null,null,null,null,null,null,0,null,null,0,0,null," ",0]
[null,null,null,null,null,null,0,null,null,0,0,null," ",0]
[null,null,null,null,null,null,0,null,null,0,0,null," ",0]
[null,null,null,null,null,null,0,null,null,0,0,null," ",0]
[null,null,null,null,null,null,0,null,null,0,0,null," ",0]
[null,null,null,null,null,null,0,null,null,0,0,null," ",0]
[null,null,null,null,null,null,0,null,null,0,0,null," ",0]
[null,null,null,null,null,null,0,null,null,0,0,null," ",0]
[null,null,null,null,null,null,0,null,null,0,0,null," ",0]
[null,null,null,null,null,null,0,null,null,0,0,null," ",0]
[null,null,null,null,null,null,0,null,null,0,0,null," ",0]
[null,null,null,null,null,null,0,null,null,0,0,null," ",0]
[null,null,null,null,null,null,0,null,null,0,0,null," ",0]
[null,null,null,null,null,null,0,null,null,0,0,null," ",0]
[null,null,null,null,null,null,0,null,null,0,0,null," ",0]
[null,null,null,null,null,null,0,null,null,0,0,null," ",0]
[null,null,null,null,null,null,0,null,null,0,0,null," ",0]
[null,null,null,null,null,null,0,null,null,0,0,null," ",0]
[null,null,null,null,null,null,0,null,null,0,0,null," ",0]
[null,null,null,null,null,null,0,null,null,0,0,null," ",0]
[null,null,null,null,null,null,0,null,null,0,0,null," ",0]
[null,null,null,null,null,null,0,null,null,0,0,null," ",0]
[null,null,null,null,null,null,0,null,null,0,0,null," ",0]
[null,null,null,null,null,null,0,null,null,0,0,null," ",0]
[null,null,null,null,null,null,0,null,null,0,0,null," ",0]
[null,null,null,null,null,null,0,null,null,0,0,null," ",0]
[null,null,null,null,null,null,0,null,null,0,0,null," ",0]
[null,null,null,null,null,null,0,null,null,0,0,null," ",0]
[null,null,null,null,null,null,0,null,null,0,0,null," ",0]
[null,null,null,null,null,null,0,null,null,0,0,null," ",0]
[null,null,null,null,null,null,0,null,null,0,0,null," ",0]
[null,null,null,null,null,null,0,null,null,0,0,null," ",0]
[null,null,null,null,null,null,0,null,null,0,0,null," ",0]
[null,null,null,null,null,null,0,null,null,0,0,null," ",0]
[null,null,null,null,null,null,0,null,null,0,0,null," ",0]
[null,null,null,null,null,null,0,null,null,0,0,null," ",0]
[null,null,null,null,null,null,0,null,null,0,0,null," ",0]
[null,null,null,null,null,null,0,null,null,0,0,null," ",0]
[null,null,null,null,null,null,0,null,null,0,0,null," ",0]
[null,null,null,null,null,null,0,null,null,0,0,null," ",0]
[null,null,null,null,null,null,0,null,null,0,0,null," ",0]
[null,null,null,null,null,null,{"$f":"IF(F327>0,180,0)","v":0},null,null,{"$f":"IF(I327>0,1,0)","v":0},{"$f":"IF(I327>0,180,0)","v":0},null,{"$f":"IF(F327=0,\" \",IF((F327*G327)+(I327*K327)=0,\"Enter Days\",IF(F327>0,F327+IF(K327>0,I327,0))))","v":" "},{"$f":"IF(AND(F327>0,H327>0),\"Cannot Calculate\",IF(F327>0,(F327*G327)+(I327*K327),H327+(I327*K327)))","v":0}]
[null,null,null,null,null,null,0,null,null,0,0,null," ",0]
[null,null,null,null,null,null,0,null,null,0,0,null," ",0]
[null,null,null,null,null,null,0,null,null,0,0,null," ",0]
[null,null,null,null,null,null,0,null,null,0,0,null," ",0]
[null,null,null,null,null,null,0,null,null,0,0,null," ",0]
[null,null,null,null,null,null,0,null,null,0,0,null," ",0]
[null,null,null,null,null,null,0,null,null,0,0,null," ",0]
[null,null,null,null,null,null,0,null,null,0,0,null," ",0]
[null,null,null,null,null,null,0,null,null,0,0,null," ",0]
[null,null,null,null,null,null,0,null,null,0,0,null," ",0]
[null,null,null,null,null,null,0,null,null,0,0,null," ",0]
[null,null,null,null,null,null,0,null,null,0,0,null," ",0]
[null,null,null,null,null,null,0,null,null,0,0,null," ",0]
[null,null,null,null,null,null,0,null,null,0,0,null," ",0]
[null,null,null,null,null,null,0,null,null,0,0,null," ",0]
[null,null,null,null,null,null,0,null,null,0,0,null," ",0]
[null,null,null,null,null,null,0,null,null,0,0,null," ",0]
[null,null,null,null,null,null,0,null,null,0,0,null," ",0]
[null,null,null,null,null,null,0,null,null,0,0,null," ",0]
[null,null,null,null,null,null,0,null,null,0,0,null," ",0]
[null,null,null,null,null,null,0,null,null,0,0,null," ",0]
[null,null,null,null,null,null,0,null,null,0,0,null," ",0]
[null,null,null,null,null,null,0,null,null,0,0,null," ",0]
[null,null,null,null,null,null,0,null,null,0,0,null," ",0]
[null,null,null,null,null,null,0,null,null,0,0,null," ",0]
[null,null,null,null,null,null,0,null,null,0,0,null," ",0]
[null,null,null,null,null,null,0,null,null,0,0,null," ",0]
[null,null,null,null,null,null,0,null,null,0,0,null," ",0]
[null,null,null,null,null,null,0,null,null,0,0,null," ",0]
[null,null,null,null,null,null,0,null,null,0,0,null," ",0]
[null,null,null,null,null,null,0,null,null,0,0,null," ",0]
[null,null,null,null,null,null,0,null,null,0,0,null," ",0]
[null,null,null,null,null,null,0,null,null,0,0,null," ",0]
[null,null,null,null,null,null,0,null,null,0,0,null," ",0]
[null,null,null,null,null,null,0,null,null,0,0,null," ",0]
[null,null,null,null,null,null,0,null,null,0,0,null," ",0]
[null,null,null,null,null,null,0,null,null,0,0,null," ",0]
[null,null,null,null,null,null,0,null,null,0,0,null," ",0]
[null,null,null,null,null,null,0,null,null,0,0,null," ",0]
[null,null,null,null,null,null,0,null,null,0,0,null," ",0]
[null,null,null,null,null,null,0,null,null,0,0,null," ",0]
[null,null,null,null,null,null,0,null,null,0,0,null," ",0]
[null,null,null,null,null,null,0,null,null,0,0,null," ",0]
[null,null,null,null,null,null,0,null,null,0,0,null," ",0]
[null,null,null,null,null,null,0,null,null,0,0,null," ",0]
[null,null,null,null,null,null,0,null,null,0,0,null," ",0]
[null,null,null,null,null,null,0,null,null,0,0,null," ",0]
[null,null,null,null,null,null,0,null,null,0,0,null," ",0]
[null,null,null,null,null,null,0,null,null,0,0,null," ",0]
[null,null,null,null,null,null,0,null,null,0,0,null," ",0]
[null,null,null,null,null,null,0,null,null,0,0,null," ",0]
[null,null,null,null,null,null,0,null,null,0,0,null," ",0]
[null,null,null,null,null,null,0,null,null,0,0,null," ",0]
[null,null,null,null,null,null,0,null,null,0,0,null," ",0]
[null,null,null,null,null,null,0,null,null,0,0,null," ",0]
[null,null,null,null,null,null,0,null,null,0,0,null," ",0]
[null,null,null,null,null,null,0,null,null,0,0,null," ",0]
[null,null,null,null,null,null,0,null,null,0,0,null," ",0]
[null,null,null,null,null,null,0,null,null,0,0,null," ",0]
[null,null,null,null,null,null,0,null,null,0,0,null," ",0]
[null,null,null,null,null,null,0,null,null,0,0,null," ",0]
[null,null,null,null,null,null,0,null,null,0,0,null," ",0]
[null,null,null,null,null,null,0,null,null,0,0,null," ",0]
[null,null,null,null,null,null,{"$f":"IF(F391>0,180,0)","v":0},null,null,{"$f":"IF(I391>0,1,0)","v":0},{"$f":"IF(I391>0,180,0)","v":0},null,{"$f":"IF(F391=0,\" \",IF((F391*G391)+(I391*K391)=0,\"Enter Days\",IF(F391>0,F391+IF(K391>0,I391,0))))","v":" "},{"$f":"IF(AND(F391>0,H391>0),\"Cannot Calculate\",IF(F391>0,(F391*G391)+(I391*K391),H391+(I391*K391)))","v":0}]
[null,null,null,null,null,null,0,null,null,0,0,null," ",0]
[null,null,null,null,null,null,0,null,null,0,0,null," ",0]
[null,null,null,null,null,null,0,null,null,0,0,null," ",0]
[null,null,null,null,null,null,0,null,null,0,0,null," ",0]
[null,null,null,null,null,null,0,null,null,0,0,null," ",0]
[null,null,null,null,null,null,0,null,null,0,0,null," ",0]
[null,null,null,null,null,null,0,null,null,0,0,null," ",0]
[null,null,null,null,null,null,0,null,null,0,0,null," ",0]
[null,null,null,null,null,null,0,null,null,0,0,null," ",0]
[null,null,null,null,null,null,0,null,null,0,0,null," ",0]
[null,null,null,null,null,null,0,null,null,0,0,null," ",0]
[null,null,null,null,null,null,0,null,null,0,0,null," ",0]
[null,null,null,null,null,null,0,null,null,0,0,null," ",0]
[null,null,null,null,null,null,0,null,null,0,0,null," ",0]
[null,null,null,null,null,null,0,null,null,0,0,null," ",0]

{"sheet":"Approval","index":2,"n_rows":26,"n_cols":2,"rows_kept":26,"cut":false,"hidden":false,"merged":[[25,0,25,1],[0,0,0,1],[8,0,8,1],[9,0,9,1],[15,0,15,1],[22,0,22,1],[21,0,21,1],[19,0,19,1],[20,0,20,1],[1,0,1,1],[2,0,2,1],[7,0,7,1],[10,0,10,1],[11,0,11,1]]}
["This worksheet contains one table spanning A17:B19 (County office checks either B18 or B19 as the status. User enters information in A9, A11, B13 to B15 (autofills). County Office completes A22, A24, B24."]
["State of New Jersey - Department of Education"]
["Request for Approval of Transportation Contract - PT2"]
["To:","Executive County Superintendent of Schools"]
["From:","School Business Administrator/Board Secretary"]
["Date:",{"$f":"TODAY()","v":"2025-07-22"}]
["Subject:","Student Transportation Contract Approval - Multi Route Contract"]
["The following student transportation multi-route contract and related documents are being submitted for your approval:"]
[]
[]
[]
["Signature - School Business Administrator/Board Secretary "]
["Contractor Name:",{"$f":"Contract!B9","v":0}]
["Multi Contract or Route Number",{"$f":"Contract!B6","v":0}]
["Multi Contract Amount",{"$f":"Contract!B13","v":0}]
["For County Office Use"]
["Status","Check One"]
["Approved\n"]
["Disapproved"]
["The above listed transportation multi-route contract and related documents have been reviewed as to form and are approved/disapproved as noted.  Please note that disapproved contracts may not be renewed."]
["Additional Comments:\n"]
[]
["Signature"]
[]
["Executive County Superintendent Signature","Date"]
["end of worksheet"]